bitfinex/quotes_ETHUSD_20240603
["timestamp","ask_amount","ask_price","bid_price","bid_amount"]
[1717426799066,1.5404312,3773.1,3771.9,3.0]
[1717426799301,2.564,3772.9,3772.0,1.1844]
[1717426799822,2.564,3772.4,3771.9,3.0]
[1717426799955,2.564,3772.4,3771.6,2.4656]
[1717426800393,2.564,3771.9,3771.0,2.2864]
[1717426800733,2.564,3771.4,3770.3,5.12949]
[1717426801013,1.32126577,3772.3,3770.4,0.512949]
[1717426801014,2.564,3770.9,3770.4,0.512949]
[1717426801557,1.53946959,3771.5,3770.4,0.512949]
[1717426801756,2.564,3771.2,3770.1,2.65239]
[1717426802061,2.564,3771.2,3770.2,2.794]
[1717426802477,2.564,3771.2,3770.1,2.65239]
[1717426802860,2.564,3771.2,3769.7,2.65272]
[1717426802861,2.564,3770.7,3769.7,2.65272]
[1717426803407,2.564,3770.7,3769.5,2.4772]
[1717426803705,2.564,3770.7,3769.6,0.6191932]
[1717426804064,2.564,3770.7,3769.7,2.794]
[1717426804402,2.564,3770.7,3769.8,2.65264]
[1717426804610,1.53946959,3771.3,3770.2,2.794]
[1717426805132,4.10346959,3772.0,3771.2,2.794]
[1717426805416,1.53946959,3772.7,3771.3,3.2794]
[1717426805554,2.564,3771.9,3771.3,2.931]
[1717426805761,2.564,3772.4,3771.4,4.1225]
[1717426806392,2.564,3772.4,3771.5,2.65146]
[1717426806598,2.564,3772.4,3771.6,3.55]
[1717426806902,2.564,3772.4,3771.6,3.0]
[1717426807109,1.53946959,3772.8,3771.6,5.44532]
[1717426807259,2.564,3772.9,3771.8,5.44519]
[1717426807458,2.564,3772.9,3772.0,2.6511]
[1717426807664,2.564,3772.4,3771.7,3.262982]
[1717426807865,2.564,3772.4,3771.4,1.1225]
[1717426808096,2.564,3772.4,3771.4,0.55]
[1717426808517,2.564,3772.4,3771.6,2.65136]
[1717426808680,2.564,3772.4,3771.7,3.0]
[1717426809025,2.564,3772.9,3771.8,0.55]
[1717426809313,3.88526577,3772.9,3771.7,3.0]
[1717426809482,3.88526577,3772.9,3771.7,3.565136]
[1717426809679,2.564,3772.3,3771.7,3.0]
[1717426809997,2.564,3772.3,3771.4,2.65153]
[1717426810328,2.564,3772.3,3771.5,3.55]
[1717426810477,2.564,3772.3,3771.5,4.170153]
[1717426810866,2.564,3771.8,3770.2,2.3357]
[1717426811114,1.32126577,3772.2,3770.2,2.3357]
[1717426811318,2.564,3771.3,3770.2,2.3357]
[1717426811709,2.4427,3771.3,3770.2,2.3357]
[1717426812013,3.76396577,3771.3,3769.6,0.6191932]
[1717426812169,1.32126577,3771.2,3769.6,2.65277]
[1717426813915,2.564,3770.8,3769.6,2.65277]
[1717426814080,1.32126577,3770.7,3769.2,2.65305]
[1717426814280,2.564,3770.4,3769.2,2.65305]
[1717426815486,2.564,3769.9,3768.8,2.65333]
[1717426818092,2.564,3769.9,3768.9,3.0]
[1717426818425,2.564,3770.2,3768.9,3.0]
[1717426818725,2.564,3770.2,3769.0,2.65321]
[1717426818891,2.564,3770.2,3769.1,4.394721]
[1717426819073,2.564,3770.2,3769.2,2.65307]
[1717426819279,2.408,3771.0,3769.5,5.4468]
[1717426819627,1.32126577,3771.0,3769.7,2.65272]
[1717426819826,2.564,3770.7,3769.8,3.565272]
[1717426819975,1.32126577,3770.6,3769.6,3.0]
[1717426820174,1.32126577,3770.6,3769.2,2.65302]
[1717426820175,1.32126577,3770.6,3769.3,3.0]
[1717426821051,2.564,3769.4,3767.6,2.65418]
[1717426821181,2.564,3768.7,3767.6,2.65418]
[1717426821773,2.564,3769.2,3767.6,2.65418]
[1717426822247,3.88526577,3769.2,3767.8,2.65405]
[1717426822451,2.564,3769.2,3768.1,2.65384]
[1717426822727,2.564,3769.7,3768.6,2.794]
[1717426823026,3.65198,3770.8,3768.8,2.794]
[1717426823182,2.564,3770.5,3769.1,5.4471]
[1717426823382,2.564,3770.5,3769.1,2.794]
[1717426823662,2.564,3770.5,3769.4,2.65288]
[1717426823927,2.564,3770.5,3769.5,3.0]
[1717426824136,2.564,3770.5,3769.2,3.0]
[1717426824281,2.564,3770.5,3769.3,0.55]
[1717426824483,2.564,3770.5,3769.7,2.65268]
[1717426824743,2.564,3770.5,3769.8,3.0]
[1717426825349,2.564,3770.5,3769.6,2.65275]
[1717426825646,2.564,3770.5,3769.7,3.0]
[1717426826345,2.564,3770.5,3769.3,3.0]
[1717426826491,1.32126577,3770.4,3769.3,3.265307]
[1717426826694,2.564,3770.0,3769.3,0.265307]
[1717426827005,2.564,3770.0,3769.1,2.65308]
[1717426827217,3.65183,3771.0,3769.2,5.794]
[1717426827218,2.564,3770.5,3769.2,5.794]
[1717426827427,2.564,3770.5,3769.3,2.65298]
[1717426827590,2.564,3770.5,3769.4,3.0]
[1717426827794,2.564,3770.5,3769.5,0.844698]
[1717426829238,3.65183,3771.0,3769.5,0.844698]
[1717426829444,3.65183,3771.0,3769.6,0.55]
[1717426829445,2.564,3770.8,3769.6,0.55]
[1717426830012,2.564,3770.3,3769.5,0.844698]
[1717426831935,2.564,3770.8,3769.6,0.55]
[1717426832135,3.88526577,3770.8,3769.7,0.9548498]
[1717426832691,2.564,3770.8,3769.7,0.9548498]
[1717426833129,2.564,3770.8,3769.8,3.20262]
[1717426833341,1.53898595,3771.6,3770.1,2.794]
[1717426833554,1.0,3772.0,3770.2,5.99634]
[1717426833555,2.564,3771.9,3770.2,5.99634]
[1717426833790,2.564,3771.4,3770.2,5.99634]
[1717426833976,2.564,3771.4,3770.3,3.599634]
[1717426834382,2.65124,3771.9,3770.3,3.599634]
[1717426834383,2.564,3770.9,3770.3,3.0]
[1717426835400,1.54277728,3771.8,3770.4,3.20222]
[1717426835695,1.0,3772.0,3770.5,3.0]
[1717426835696,2.564,3771.4,3770.5,3.0]
[1717426836853,2.564,3771.4,3770.5,2.79103542]
[1717426838808,2.564,3771.4,3770.6,2.65208]
[1717426839106,2.564,3771.4,3770.7,3.0]
[1717426840114,2.564,3771.9,3771.0,2.65177]
[1717426840314,1.54277728,3772.3,3771.1,3.0]
[1717426840469,1.32126577,3772.3,3771.1,3.844577]
[1717426841214,1.32126577,3772.2,3771.1,3.844577]
[1717426841486,2.564,3772.4,3771.2,3.344]
[1717426841682,2.564,3772.4,3771.3,3.0]
[1717426841888,2.564,3772.4,3771.4,1.2688577]
[1717426843169,2.564,3772.4,3771.5,2.65139]
[1717426843365,1.54277728,3773.2,3772.1,2.65097]
[1717426843607,1.54277728,3773.5,3772.2,3.0]
[1717426843899,5.07667728,3773.9,3772.7,2.65055]
[1717426844113,3.5339,3773.9,3772.8,3.55]
[1717426844291,3.564,3774.1,3772.8,3.0]
[1717426844475,2.564,3773.6,3772.8,3.0]
[1717426844697,2.564,3773.6,3772.4,5.4816]
[1717426844880,2.564,3773.6,3772.5,0.792648]
[1717426845087,1.54277728,3774.2,3772.6,2.794]
[1717426845268,2.564,3774.0,3772.7,3.55]
[1717426845472,2.564,3773.5,3772.5,3.0]
[1717426845718,2.564,3773.5,3772.4,2.4816]
[1717426846491,2.564,3773.5,3772.7,2.65058]
[1717426847418,2.564,3774.0,3772.8,0.55]
[1717426847588,2.564,3774.0,3773.0,2.65036]
[1717426847992,2.564,3774.0,3773.3,2.65015]
[1717426848190,2.54613973,3775.0,3773.3,2.65015]
[1717426848191,2.564,3774.5,3773.3,2.65015]
[1717426848378,2.564,3774.5,3773.4,0.55]
[1717426848602,2.564,3774.5,3773.4,3.55]
[1717426849088,2.564,3774.5,3773.4,3.0]
[1717426849292,2.564,3774.5,3773.6,2.64991]
[1717426850611,1.32126577,3774.4,3773.4,3.0]
[1717426850907,1.32126577,3774.4,3773.3,3.0]
[1717426851635,1.32126577,3774.4,3773.3,3.565025]
[1717426852326,1.32126577,3774.4,3773.3,3.0]
[1717426852928,1.32126577,3774.4,3769.6,3.9065161]
[1717426852929,2.564,3773.6,3772.3,5.03613]
[1717426853081,3.88526577,3773.6,3772.3,5.03613]
[1717426853439,2.564,3773.6,3772.7,2.6506]
[1717426853582,2.64944,3774.4,3773.0,2.65038]
[1717426853583,2.564,3774.2,3773.0,2.65038]
[1717426854009,2.564,3774.2,3773.3,2.794]
[1717426854178,2.564,3774.7,3773.3,5.1793]
[1717426854392,2.564,3774.7,3773.4,0.68175646]
[1717426854596,2.564,3774.7,3773.4,3.68175646]
[1717426854990,2.564,3774.7,3773.6,5.44397]
[1717426855303,2.564,3774.7,3773.8,2.64981]
[1717426855622,2.64884,3775.3,3773.8,2.64981]
[1717426855792,2.64884,3775.3,3773.9,3.0]
[1717426855793,2.564,3775.0,3773.9,3.0]
[1717426855998,2.564,3774.9,3773.9,3.0]
[1717426856193,2.564,3774.9,3774.1,2.794]
[1717426856400,2.564,3774.9,3774.0,0.564981]
[1717426856623,2.564,3775.4,3774.1,2.6496]
[1717426856787,2.564,3775.4,3774.2,3.0]
[1717426857344,2.564,3775.4,3774.4,2.794]
[1717426857634,2.564,3775.4,3774.5,3.844344]
[1717426857785,2.564,3775.4,3774.5,0.844344]
[1717426858629,2.564,3775.4,3774.5,5.917544]
[1717426858930,2.564,3775.4,3774.5,3.123544]
[1717426859086,2.6485,3775.8,3774.6,3.0]
[1717426859428,2.564,3775.9,3774.6,3.0]
[1717426859429,2.564,3775.9,3774.8,2.794]
[1717426860069,2.564,3775.9,3775.0,5.44296]
[1717426860328,2.564,3776.4,3775.2,2.794]
[1717426860533,3.88526577,3776.4,3775.3,3.0]
[1717426860716,1.0,3776.7,3774.7,1.1917544]
[1717426860717,1.54621576,3776.8,3775.5,2.4649]
[1717426860921,1.32126577,3776.4,3775.1,3.0]
[1717426861123,2.564,3776.0,3775.0,3.0]
[1717426861309,2.564,3776.0,3775.0,0.54649]
[1717426861637,3.96967577,3775.9,3774.6,3.0]
[1717426861789,2.564,3775.5,3774.6,3.0]
[1717426861985,2.564,3775.5,3774.2,5.3847]
[1717426862184,2.64861,3775.6,3774.2,5.3847]
[1717426862418,6.53387577,3775.6,3774.3,0.80343]
[1717426862624,6.53387577,3775.6,3774.3,3.80343]
[1717426863087,2.564,3775.6,3774.7,2.794]
[1717426863417,2.564,3776.1,3774.9,2.64905]
[1717426863589,2.564,3776.1,3775.0,0.69703158]
[1717426863785,2.564,3776.1,3774.3,3.80343]
[1717426864113,2.564,3776.1,3774.4,1.87126577]
[1717426864314,3.96956577,3776.0,3774.4,3.55]
[1717426864717,2.64855,3775.7,3774.5,2.64933]
[1717426864926,2.64855,3775.7,3774.6,3.0]
[1717426865121,3.96981577,3775.7,3774.6,4.279676]
[1717426865291,2.564,3775.3,3774.3,0.80343]
[1717426865489,2.564,3775.3,3774.3,3.80343]
[1717426865791,2.564,3774.8,3773.6,2.3771]
[1717426866021,2.64922,3774.7,3773.6,2.3771]
[1717426866233,2.564,3774.8,3773.6,5.02704]
[1717426866435,1.54621576,3775.1,3773.9,2.64975]
[1717426866731,2.564,3775.3,3774.0,0.264975]
[1717426866732,2.64887,3775.2,3774.0,0.264975]
[1717426866888,2.64887,3775.2,3773.7,4.11526577]
[1717426867088,2.564,3775.3,3774.2,5.44352]
[1717426867349,4.68287096,3775.3,3774.3,0.544352]
[1717426867494,4.11021576,3775.3,3774.3,3.544352]
[1717426867702,4.11021576,3775.3,3774.5,2.794]
[1717426867703,1.54621576,3775.3,3774.5,2.794]
[1717426867890,1.54621576,3775.6,3774.7,2.794]
[1717426868192,0.57264798,3775.7,3774.8,3.6344]
[1717426868193,2.11882947,3775.7,3774.8,3.6344]
[1717426868510,2.11882947,3775.5,3774.8,3.4284]
[1717426868724,1.54621576,3775.5,3774.9,3.0]
[1717426868907,1.54621576,3775.5,3774.8,0.6344]
[1717426869241,1.54621576,3775.5,3774.9,0.41844]
[1717426869535,0.57261371,3775.4,3774.9,0.41844]
[1717426869716,0.57261371,3775.4,3774.9,3.41844]
[1717426870042,1.54621576,3775.7,3775.1,2.794]
[1717426870240,1.54621576,3775.8,3775.2,3.80837058]
[1717426870459,2.564,3775.4,3774.9,3.0]
[1717426870744,2.564,3775.4,3772.6,3.2025395]
[1717426870745,1.54621576,3775.2,3773.6,2.64995]
[1717426870896,1.54621576,3774.4,3773.6,2.64995]
[1717426871242,2.11893404,3774.3,3773.6,2.64995]
[1717426871446,0.57271828,3774.2,3773.7,3.303635]
[1717426871664,1.54621576,3774.3,3773.9,2.794]
[1717426871814,1.54621576,3774.5,3774.1,2.794]
[1717426871991,1.54621576,3774.5,3774.3,2.794]
[1717426872196,1.54621576,3775.0,3774.4,3.0]
[1717426872437,1.54621576,3774.7,3774.4,3.0]
[1717426872742,0.57263155,3774.6,3774.2,0.41152658]
[1717426872899,2.564,3775.3,3774.3,0.34115266]
[1717426872900,2.11884731,3774.5,3774.3,0.34115266]
[1717426873099,1.54663778,3774.5,3774.3,0.34115266]
[1717426873290,2.11930569,3774.4,3774.3,0.34115266]
[1717426873928,2.11930569,3774.4,3774.3,3.68515266]
[1717426873929,0.57266791,3774.4,3774.3,3.68515266]
[1717426874110,1.54663778,3774.5,3774.4,5.44342]
[1717426874309,2.11927181,3774.5,3774.4,9.40308792]
[1717426874502,1.54663778,3774.7,3774.4,9.40308792]
[1717426874697,1.54663778,3774.8,3774.6,5.44328]
[1717426875030,1.54663778,3775.0,3774.7,1.29529479]
[1717426875339,1.54663778,3775.1,3775.0,5.443]
[1717426875547,1.54663778,3775.3,3775.2,2.794]
[1717426875715,1.54663778,3775.3,3775.2,4.42283]
[1717426875915,2.11912907,3775.3,3775.2,7.42283]
[1717426876113,0.57249129,3775.3,3775.2,4.62883]
[1717426876351,1.54663778,3775.4,3775.3,2.64879]
[1717426876645,1.54663778,3775.6,3775.4,2.794]
[1717426876945,1.54663778,3775.7,3775.5,5.99265]
[1717426877142,0.57242782,3775.6,3775.5,5.99265]
[1717426877343,2.1190656,3775.6,3775.5,5.64865]
[1717426877641,0.57242782,3775.6,3775.4,3.0]
[1717426877841,0.57242782,3775.6,3775.4,0.38598886]
[1717426878003,0.57242782,3775.5,3775.4,0.38598886]
[1717426878664,0.57242782,3775.5,3774.3,2.64949]
[1717426878797,1.54643038,3775.1,3774.4,2.794]
[1717426878998,0.57242782,3775.0,3774.6,2.794]
[1717426879242,1.54647359,3774.7,3774.6,5.44328]
[1717426879410,1.54647359,3775.0,3774.6,5.987608]
[1717426879749,5.0059,3777.2,3774.6,5.987608]
[1717426879750,1.54647359,3775.1,3774.8,5.44314]
[1717426880053,1.54647359,3775.1,3775.0,5.443]
[1717426880247,2.11899493,3775.1,3775.0,8.443]
[1717426880458,0.57252134,3775.1,3775.0,5.649]
[1717426880597,1.54647359,3775.2,3775.0,5.649]
[1717426880805,0.57250072,3775.1,3775.0,6.27377608]
[1717426881005,2.11897431,3775.1,3775.0,10.93904185]
[1717426881319,0.57250072,3775.1,3775.0,10.93904185]
[1717426881651,1.54647359,3775.3,3775.0,9.61777608]
[1717426881939,0.57248902,3775.2,3775.1,6.344]
[1717426882367,2.564,3776.3,3775.3,2.794]
[1717426882650,1.54698969,3775.4,3775.3,2.794]
[1717426882855,1.54698969,3775.4,3775.3,6.344]
[1717426883023,0.57247175,3775.4,3775.3,6.344]
[1717426883227,1.54698969,3775.5,3775.4,5.44272]
[1717426883535,1.54698969,3775.6,3775.4,8.99272]
[1717426883710,1.54698969,3775.6,3775.5,3.344]
[1717426883910,2.11942871,3775.6,3775.5,3.344]
[1717426884355,0.57243902,3775.6,3775.5,4.66526577]
[1717426884567,2.64742,3777.3,3776.1,2.794]
[1717426884729,2.564,3776.8,3775.5,7.55307494]
[1717426884912,2.564,3776.8,3775.5,6.19859]
[1717426885311,3.96907577,3776.7,3775.5,5.64864]
[1717426885540,2.564,3776.8,3775.5,6.96990577]
[1717426885753,2.564,3776.8,3775.6,2.794]
[1717426886712,2.564,3776.8,3775.5,5.64864]
[1717426886941,2.564,3776.8,3775.5,6.440414]
[1717426887515,2.564,3776.3,3775.5,3.0]
[1717426887835,2.64763,3777.0,3775.3,2.794]
[1717426888037,5.21163,3777.0,3775.7,2.794]
[1717426888528,2.564,3777.0,3775.9,5.44231]
[1717426888733,2.64734,3777.4,3775.9,5.44231]
[1717426888734,2.64743,3777.3,3775.9,5.44234]
[1717426888954,2.564,3777.4,3776.1,5.44221]
[1717426889261,2.564,3777.4,3776.3,2.794]
[1717426889783,2.564,3777.4,3776.1,5.44221]
[1717426889919,2.64747,3777.2,3776.2,3.0]
[1717426890265,5.2117,3776.9,3775.7,2.64847]
[1717426890467,5.2117,3776.9,3775.7,2.913317]
[1717426891017,5.2117,3776.9,3775.8,1.32126577]
[1717426891226,0.1265033,3777.8,3776.6,2.64784]
[1717426891423,2.6905033,3777.8,3776.7,0.264784]
[1717426891722,2.564,3777.3,3776.2,2.64812]
[1717426891946,2.564,3777.3,3776.3,3.0]
[1717426892521,2.564,3777.3,3776.6,2.64788]
[1717426892717,0.1265033,3777.8,3777.0,2.794]
[1717426892949,0.1265033,3777.8,3777.2,2.794]
[1717426893123,0.1265033,3777.8,3776.7,3.09970458]
[1717426893317,2.564,3777.6,3776.7,3.09970458]
[1717426893560,2.564,3777.6,3776.8,3.0]
[1717426893788,2.564,3777.6,3776.8,3.60997046]
[1717426895333,2.564,3777.6,3776.8,6.40397046]
[1717426895744,2.564,3777.6,3776.8,3.60997046]
[1717426896254,0.1265033,3777.8,3777.0,5.0723]
[1717426896433,0.1265033,3777.8,3777.2,2.794]
[1717426896634,0.1265033,3777.8,3777.3,3.86223]
[1717426897054,0.1265033,3777.8,3777.0,3.0]
[1717426897442,0.1265033,3777.8,3777.1,2.794]
[1717426897700,0.1265033,3777.8,3777.2,5.794]
[1717426898194,0.1265033,3777.8,3777.4,2.794]
[1717426898475,0.1265033,3777.8,3777.6,2.794]
[1717426898630,0.1265033,3777.8,3777.6,0.73125958]
[1717426899012,0.1265033,3777.8,3777.4,3.0]
[1717426899140,0.1265033,3777.8,3777.5,2.794]
[1717426899343,0.1265033,3777.8,3777.6,0.55]
[1717426899548,0.1265033,3777.8,3777.4,3.0]
[1717426899767,0.1265033,3777.8,3777.5,2.794]
[1717426899949,0.1265033,3777.8,3777.6,0.844133]
[1717426900435,0.1265033,3777.8,3777.4,3.0]
[1717426901960,0.1265033,3777.8,3777.4,5.794]
[1717426902548,0.1265033,3777.8,3777.6,5.44118]
[1717426902747,0.1265033,3777.8,3777.4,3.0]
[1717426902748,0.1265033,3777.8,3777.4,5.794]
[1717426902953,0.1265033,3777.8,3777.6,2.794]
[1717426903164,0.1265033,3777.8,3777.7,5.37679235]
[1717426903365,0.1265033,3777.8,3777.7,11.02390235]
[1717426904735,0.1265033,3777.8,3777.7,9.70263658]
[1717426905041,0.1265033,3777.8,3777.3,2.64735]
[1717426905242,0.1265033,3777.8,3776.9,2.64762]
[1717426905461,2.6905033,3777.8,3777.0,3.0]
[1717426906095,0.1265033,3777.8,3777.1,2.794]
[1717426906400,0.1265033,3777.8,3777.2,5.794]
[1717426906559,0.1265033,3777.8,3777.3,3.0]
[1717426907683,0.1265033,3777.8,3776.5,2.6479]
[1717426908000,2.64715,3777.7,3776.5,2.6479]
[1717426908490,2.64715,3777.7,3776.6,2.794]
[1717426908787,2.64715,3777.7,3776.7,3.33819]
[1717426909199,2.64734,3777.4,3776.8,3.0]
[1717426909404,2.64734,3777.4,3776.1,2.64818]
[1717426909405,2.64734,3777.4,3776.2,3.0]
[1717426909702,2.64734,3777.4,3776.4,2.794]
[1717426909854,2.64734,3777.4,3776.5,5.794]
[1717426910054,2.64755,3777.1,3775.8,0.09307631]
[1717426910310,2.64755,3777.1,3775.8,1.41434208]
[1717426910600,2.64776,3776.8,3775.8,2.794]
[1717426910806,2.64776,3776.8,3775.9,3.42967021]
[1717426910982,2.64776,3776.8,3775.9,2.794]
[1717426911700,2.64776,3776.8,3776.0,3.0]
[1717426913094,2.64776,3776.8,3775.9,5.794]
[1717426915960,1.92,3777.1,3775.9,5.794]
[1717426916300,1.92,3777.1,3776.0,7.60776177]
[1717426916469,1.92,3777.1,3776.2,5.44214]
[1717426916670,4.373,3777.5,3776.3,5.794]
[1717426916969,0.1265033,3777.8,3776.8,2.64771]
[1717426917176,0.1265033,3777.8,3777.1,5.44148]
[1717426917499,0.1265033,3777.8,3777.2,3.0]
[1717426918392,0.1265033,3777.8,3777.3,3.344]
[1717426919065,0.1265033,3777.8,3777.7,2.794]
[1717426919275,0.1265033,3777.8,3777.7,7.66526577]
[1717426919467,0.1265033,3777.8,3777.7,9.22508035]
[1717426922566,0.1265033,3777.8,3777.7,9.31810985]
[1717426923497,0.01394532,3777.8,3777.7,9.31810985]
[1717426925318,0.01394532,3777.8,3777.7,7.44684408]
[1717426925524,0.01394532,3777.8,3777.7,4.44684408]
[1717426925819,0.01394532,3777.8,3777.7,0.0930295]
[1717426925967,0.01394532,3777.8,3776.8,2.64772]
[1717426926164,0.01394532,3777.8,3776.8,3.96898577]
[1717426926680,0.01394532,3777.8,3776.9,2.794]
[1717426926893,0.01394532,3777.8,3776.9,3.47029858]
[1717426927295,2.3815,3777.7,3776.9,0.67629858]
[1717426927492,2.3815,3777.7,3776.8,2.64772]
[1717426927797,2.64719,3777.6,3776.5,2.794]
[1717426928188,2.64719,3777.6,3776.7,2.794]
[1717426928832,0.01394532,3777.8,3777.2,2.64742]
[1717426928975,0.01394532,3777.8,3777.3,3.058742]
[1717426929176,0.01394532,3777.8,3777.5,2.794]
[1717426929379,0.01394532,3777.8,3777.6,6.344]
[1717426929692,0.01394532,3777.8,3777.6,3.344]
[1717426929894,0.01394532,3777.8,3776.3,1.059921]
[1717426929895,0.01394532,3777.8,3776.8,2.64771]
[1717426930114,0.01394532,3777.8,3776.9,3.814771]
[1717426930351,2.66102532,3777.8,3776.9,3.55]
[1717426930477,2.4875,3777.7,3776.9,0.55]
[1717426930834,2.64727,3777.5,3776.7,2.794]
[1717426930988,2.64749,3777.2,3776.0,3.492516]
[1717426931196,2.64749,3777.2,3776.0,2.64827]
[1717426931798,2.64719,3777.6,3776.2,2.794]
[1717426932139,0.01394532,3777.8,3777.1,2.794]
[1717426932311,0.01394532,3777.8,3777.2,0.544158]
[1717426932623,0.01394532,3777.8,3776.7,3.0]
[1717426932830,0.01394532,3777.8,3776.8,1.87126577]
[1717426933117,0.01394532,3777.8,3776.9,5.44163]
[1717426933331,0.01394532,3777.8,3777.1,2.794]
[1717426933474,0.01394532,3777.8,3777.2,3.344]
[1717426933675,0.01394532,3777.8,3777.4,2.794]
[1717426933874,0.01394532,3777.8,3777.6,2.794]
[1717426934516,0.01394532,3777.8,3777.5,0.55]
[1717426934686,0.01394532,3777.8,3777.6,2.794]
[1717426934871,0.01394532,3777.8,3777.3,3.0]
[1717426935075,0.01394532,3777.8,3777.4,0.55]
[1717426935275,0.01394532,3777.8,3777.2,3.19741]
[1717426935490,0.01394532,3777.8,3777.4,2.794]
[1717426935724,0.01394532,3777.8,3777.6,2.794]
[1717426935904,0.01394532,3777.8,3777.1,0.75188958]
[1717426936105,0.01394532,3777.8,3776.9,3.0]
[1717426936283,2.64712,3777.7,3776.9,3.0]
[1717426936484,2.64712,3777.7,3776.6,2.794]
[1717426936682,2.64712,3777.7,3776.7,6.6382]
[1717426936880,0.01394532,3777.8,3776.9,2.794]
[1717426937112,0.01394532,3777.8,3777.1,5.44153]
[1717426937280,0.01394532,3777.8,3777.3,2.794]
[1717426937697,0.01394532,3777.8,3777.5,2.794]
[1717426937906,0.01394532,3777.8,3777.6,1.1844]
[1717426938105,0.01394532,3777.8,3777.6,0.55]
[1717426938309,0.01394532,3777.8,3777.3,0.55]
[1717426938519,0.01394532,3777.8,3777.3,1.87126577]
[1717426938681,0.01394532,3777.8,3777.3,0.55]
[1717426939080,0.01394532,3777.8,3777.3,3.344]
[1717426939310,0.01394532,3777.8,3777.4,3.899153]
[1717426940038,0.01394532,3777.8,3777.4,0.899153]
[1717426940751,0.01394532,3777.8,3777.2,3.0]
[1717426940956,0.01394532,3777.8,3776.8,3.0]
[1717426941165,0.01394532,3777.8,3776.9,2.794]
[1717426941372,0.01394532,3777.8,3777.0,3.0]
[1717426941660,0.01394532,3777.8,3777.1,0.8794]
[1717426942156,2.64713,3777.7,3776.9,3.0]
[1717426942367,2.64713,3777.7,3776.7,3.0]
[1717426942570,0.01394532,3777.8,3776.9,2.794]
[1717426942865,0.01394532,3777.8,3777.1,2.794]
[1717426943078,0.01394532,3777.8,3777.1,4.11526577]
[1717426943271,0.01394532,3777.8,3777.3,2.794]
[1717426943475,0.01394532,3777.8,3777.4,3.0]
[1717426944675,2.66102532,3777.8,3777.1,5.794]
[1717426944826,2.66102532,3777.8,3777.2,0.5794]
[1717426946039,2.64727,3777.5,3776.8,2.794]
[1717426946280,0.01394532,3777.8,3776.8,2.794]
[1717426947140,2.64711,3777.7,3776.5,2.794]
[1717426947375,2.64711,3777.7,3776.7,2.794]
[1717426947532,2.64711,3777.7,3776.8,4.31652658]
[1717426948135,0.01394532,3777.8,3776.9,5.44166]
[1717426948371,0.01394532,3777.8,3777.0,3.55]
[1717426951841,2.66100532,3777.8,3777.0,3.0]
[1717426952039,2.64727,3777.5,3777.0,3.0]
[1717426952250,2.64727,3777.5,3776.6,3.0]
[1717426952454,2.64727,3777.5,3776.7,3.0]
[1717426952780,2.64754,3777.1,3776.1,2.64818]
[1717426952979,2.64754,3777.1,3776.1,5.44218]
[1717426953149,2.3835,3777.3,3776.3,5.44206]
[1717426953366,2.64727,3777.5,3776.3,5.44206]
[1717426953839,2.64727,3777.5,3776.6,2.794]
[1717426954041,0.01394532,3777.8,3776.9,5.44163]
[1717426954383,0.01394532,3777.8,3776.7,4.87126577]
[1717426954384,0.01394532,3777.8,3777.2,2.794]
[1717426954581,0.01394532,3777.8,3777.3,8.99134]
[1717426954786,0.01394532,3777.8,3777.3,6.76260577]
[1717426954988,0.01394532,3777.8,3777.5,5.44123]
[1717426955340,0.01394532,3777.8,3777.6,0.55]
[1717426955656,0.01394532,3777.8,3777.7,0.899123]
[1717426956241,0.01394532,3777.8,3777.7,5.01438877]
[1717426956481,0.01394532,3777.8,3777.7,5.56438877]
[1717426956668,0.01394532,3777.8,3777.7,8.56438877]
[1717426959310,0.01394532,3777.8,3777.7,8.65741827]
[1717426959531,0.01394532,3777.8,3777.7,10.95641033]
[1717426960363,0.00153757,3777.8,3777.7,11.50826983]
[1717426960607,0.00153757,3777.8,3777.7,10.95641033]
[1717426961885,0.00153757,3777.8,3777.7,8.65741827]
[1717426962489,0.00153757,3777.8,3777.7,10.95638854]
[1717426962695,3.17882176,3780.4,3778.9,2.794]
[1717426962865,2.64523,3780.4,3779.1,2.794]
[1717426963073,2.64537,3780.2,3779.2,3.55]
[1717426963421,2.64537,3780.2,3779.2,3.0]
[1717426963721,2.64537,3780.2,3779.2,3.80433711]
[1717426963865,2.64537,3780.2,3779.2,3.0]
[1717426964312,2.64537,3780.2,3779.3,2.64595]
[1717426964614,2.64537,3780.2,3779.3,3.19595]
[1717426964769,2.2881,3780.3,3779.3,5.98995]
[1717426965168,2.64511,3780.6,3779.6,2.794]
[1717426965367,2.64483,3781.0,3779.8,5.43962]
[1717426965623,2.64483,3781.0,3779.9,3.55]
[1717426966092,2.64509,3780.6,3779.9,3.0]
[1717426966304,5.20209,3780.6,3779.9,3.0]
[1717426966498,5.20209,3780.6,3779.4,2.6459]
[1717426966499,5.20209,3780.6,3779.5,3.0]
[1717426967012,2.64509,3780.6,3779.6,3.19577]
[1717426967212,2.64509,3780.6,3779.8,2.794]
[1717426967375,2.64509,3780.6,3779.6,3.19577]
[1717426967573,2.64509,3780.6,3779.7,3.0]
[1717426967797,2.64509,3780.6,3779.8,0.619577]
[1717426968187,2.64483,3781.0,3779.8,3.413577]